Cogmind - Beta 11.1 @@@ ROGUE MODE // 2022.04.23 @ 19:32:16 Player: Runia Result: Destroyed by 5X-7R6(z) with Makeshift Hammer Performance ------------- Evolutions (3) 1500 Regions Visited (14) 2800 Robots Destroyed (190) 950 Value Destroyed (6292) 6292 Prototype IDs (40) 800 Alien Tech Used (0) 0 Bonus (2595) 2595 TOTAL SCORE: 14937 Bonus ------- High Alert Combat Kills 767 Follower Combat Kills 418 Entered Garrisons 600 Used RIF Installer 1500 Aligned with FarCom 300 Friendly Fire -990 Cogmind --------- Core Integrity 0/700 Matter 295/300 Energy 285/290 System Corruption 32% Temperature Cool (0) Movement Walking (410) Ox4 Location -7/Zion Parts ------- > --- POWER (1) -------- Reinforced Deuterium Engine > --- PROPULSION (4) --- Improved Titanium Leg > --- UTILITY (6) ------ Huge Storage Unit Graphene Brace > --- WEAPON (2) ------- Makeshift Spear > --- INVENTORY (25) --- Makeshift Power Source Makeshift Leg YI-UF0's Bottomless Matter Pit (88) Makeshift Terrain Scanner Makeshift Terrain Scan Processor Transmission Jammer Makeshift Hacking Suite Relay Coupler [NC] (26) Relay Coupler [NC] (31) Relay Coupler [Sentry] (22) Splice Drone Bay (5/6) Improved EM Pulse Cannon Improved EM Pulse Cannon Missile Launcher Heavy Rocket Launcher Heavy Missile Launcher Remote Datajack Remote Datajack Field Lobotomy Kit (4) Peak State ------------ > --- POWER ------------ Reinforced Deuterium Engine > --- PROPULSION ------- Armored Treads Armored Treads Armored Huge Wheel > --- UTILITY ---------- Huge Storage Unit Advanced Visual Processing Unit Improved Signal Interpreter Hardened Heavy Armor Plating Graphene Brace > --- WEAPON ----------- Bore Cannon Bore Cannon > --- INVENTORY -------- Reinforced Deuterium Engine Armored Treads Advanced Treads YI-UF0's Bottomless Matter Pit Improved Sensor Array Transmission Jammer Makeshift Hacking Suite Relay Coupler [NC] Relay Coupler [NC] Relay Coupler [Sentry] Long-range Tractor Beam Splice Drone Bay Improved EM Pulse Cannon Improved EM Pulse Cannon Heavy Ion Cannon Gauss Rifle Precision Assault Rifle Shock Bomb Launcher Mini Grenade Launcher Heavy Missile Launcher Remote Datajack Remote Datajack Field Lobotomy Kit Heavy Mace Makeshift Spear [Rating: 60] Favorites ----------- Power Reinforced Deuterium Engine Engine Reinforced Deuterium Engine Propulsion Improved Treads Treads Improved Treads Leg Makeshift Leg Wheel Armored Huge Wheel Utility Huge Storage Unit Device Structural Scanner Storage Huge Storage Unit Processor Advanced Visual Processing Unit Hackware Relay Coupler [Sentry] Protection Hardened Heavy Armor Plating Weapon Enhanced Autogun Energy Gun Medium Laser Energy Cannon Heavy Ion Cannon Ballistic Gun Enhanced Autogun Ballistic Cannon Improved Light Cannon Launcher Shock Bomb Launcher Special Weapon Remote Datajack Impact Weapon Heavy Mace Piercing Weapon Makeshift Spear Build | -11 -10 -10 -10 -9 -8 -8 -8 -8 -7 -7 -7 -7 -7 -7 ------- Run | Scr Mat Min Exi Min Mat Gar Mat Gar Fac Gar Fac Low Low Zio Slots Evolved 6 | . . . . . 4 . . . 2 . . . . . Power . | . . . . . . . . . . . . . . . Propulsion 2 | . . . . . 2 . . . . . . . . . Utility 4 | . . . . . 2 . . . 2 . . . . . Weapon . | . . . . . . . . . . . . . . . Parts Attached 239 | 2 11 10 . 3 27 15 21 21 12 21 34 5 3 54 Power 8 | . 1 . . 1 1 1 1 . 1 . 1 . . 1 Engine 8 | . 1 . . 1 1 1 1 . 1 . 1 . . 1 Core . | . . . . . . . . . . . . . . . Reactor . | . . . . . . . . . . . . . . . Propulsion 46 | 2 2 2 . . 7 1 5 3 1 3 5 . . 15 Treads 24 | 2 2 2 . . 2 1 4 1 1 . 4 . . 5 Leg 11 | . . . . . . . . . . 1 . . . 10 Wheel 11 | . . . . . 5 . 1 2 . 2 1 . . . Hover . | . . . . . . . . . . . . . . . Flight . | . . . . . . . . . . . . . . . Utility 56 | . 2 2 . . 9 4 7 3 4 3 9 2 . 11 Device 24 | . 1 2 . . 4 1 2 . 1 . 3 1 . 9 Storage 3 | . 1 . . . 2 . . . . . . . . . Processor 7 | . . . . . 1 . 1 . 1 . 2 1 . 1 Hackware 6 | . . . . . . . . 3 1 2 . . . . Protection 16 | . . . . . 2 3 4 . 1 1 4 . . 1 Artifact . | . . . . . . . . . . . . . . . Weapon 129 | . 6 6 . 2 10 9 8 15 6 15 19 3 3 27 Energy Gun . | . . . . . . . . . . . . . . . Energy Cannon 3 | . . . . . . . . . . . 2 . . 1 Ballistic Gun 54 | . 4 . . 2 6 4 5 6 4 5 9 1 2 6 Ballistic Cannon 16 | . . 4 . . 1 . . . . . . . . 11 Launcher 25 | . 2 2 . . 1 5 1 1 . 3 2 . 1 7 Special Weapon 12 | . . . . . . . . 4 1 4 3 . . . Impact Weapon 18 | . . . . . 2 . 2 4 1 3 3 2 . 1 Slashing Weapon . | . . . . . . . . . . . . . . . Piercing Weapon 1 | . . . . . . . . . . . . . . 1 Special Melee Weapon . | . . . . . . . . . . . . . . . Unidentified Prototypes 4 | . . 1 . . 2 . . . . . 1 . . . Corrupted Parts 2 | . . . . . . . . . . . . . . 2 System Corruption 11 | . . . . . . . . . . . . . . 11 Parts Lost 45 | . . 5 . . . 3 3 . 2 4 2 . . 26 Power 3 | . . 1 . . . 1 . . . . . . . 1 Propulsion 18 | . . 2 . . . 1 1 . 1 2 . . . 11 Utility 14 | . . . . . . 1 1 . 1 2 2 . . 7 Weapon 10 | . . 2 . . . . 1 . . . . . . 7 Highest Loss Streak 5 | . . 2 . . . 3 1 . 1 3 2 . . 5 To Critical Strikes 1 | . . 1 . . . . . . . . . . . . Average Slot Usage (%) 87 | . 99 93 85 92 97 83 83 80 83 89 87 84 84 81 Engine 7 | . 14 8 . 6 9 9 9 9 7 7 7 7 7 6 Treads 15 | . 28 27 28 28 18 18 17 17 15 5 4 7 7 8 Leg 1 | . . . . . . . . . . 2 2 . . 7 Wheel 8 | . . . . . 16 9 9 9 7 13 15 15 15 6 Device 7 | . 13 14 14 14 9 1 . . 3 . 5 7 7 13 Storage 9 | . 14 14 14 14 9 9 9 9 7 7 7 7 7 7 Processor 6 | . . . . . 8 9 11 1 5 7 10 14 15 10 Hackware 3 | . . . . . . . . 7 9 20 8 . . . Protection 5 | . . . . . 8 9 9 9 9 6 7 7 7 3 Ballistic Gun 10 | . 20 2 . 13 15 12 14 7 3 7 11 8 14 5 Ballistic Cannon 4 | . . 25 28 14 1 . . . . . . . . 7 Special Weapon 1 | . . . . . . . . 5 5 3 . . . . Impact Weapon 1 | . . . . . . . 3 3 5 2 2 5 . . Naked Turns . | . . . . . . . . . . . . . . . Heaviest Build 136 | 14 48 54 49 58 112 108 121 121 131 115 127 123 123 136 Greatest Support 80 | 40 46 46 46 46 32 28 43 45 28 40 40 40 40 80 Greatest Overweight (x) 10 | . 1 1 1 1 4 3 4 10 4 4 3 3 3 5 Average Overweight (x) 2 | . . 1 1 1 2 3 3 4 3 2 2 3 3 2 Largest Inventory Capacity 25 | 8 20 20 20 20 25 25 25 25 25 25 25 25 25 25 Average Capacity 22 | 8 11 20 20 20 23 25 25 25 25 25 25 25 25 25 Most Carried 25 | 6 15 17 17 20 25 25 25 25 25 25 25 25 25 25 Average Carried 21 | 2 7 15 16 18 22 22 24 24 24 22 24 24 24 23 Final Capacity 25 | 8 20 20 20 20 25 25 25 25 25 25 25 25 25 25 Final Carried 25 | 3 15 15 17 20 25 22 25 24 25 23 25 24 25 19 Class Distribution -------------------- 42% | Mutant 27% | Bothacker-Mutant 15% | Scavenger-Mutant 6% | Scavenger-Skirmisher 4% | Scavenger-Assassin 3% | Skirmisher Dominant Class ---------------- Mutant | -10/Materials Mutant | -10/Mines Mutant | -10/Exiles Mutant | -9/Mines Scavenger-Mutant | -8/Materials Mutant | -8/Garrison Mutant | -8/Materials Bothacker-Mutant | -8/Garrison Bothacker-Mutant | -7/Factory Bothacker-Mutant | -7/Garrison Bothacker-Mutant | -7/Factory Scavenger-Assassin | -7/Lower Caves Scavenger-Skirmisher | -7/Lower Caves Scavenger-Mutant | -7/Zion Resources | -11 -10 -10 -10 -9 -8 -8 -8 -8 -7 -7 -7 -7 -7 -7 ----------- Run | Scr Mat Min Exi Min Mat Gar Mat Gar Fac Gar Fac Low Low Zio Matter Collected 10157 | 220 135 195 300 82 687 323 1426 1459 573 241 1280 142 114 2980 Remotely 1080 | . . . . . 66 54 . . . . 340 . . 620 Salvage Created 7536 | 82 504 165 . 153 832 328 1678 537 654 242 775 155 117 1314 Parts 421 | 3 27 1 . 8 43 16 90 27 22 15 44 . 9 116 Haulers Intercepted 15 | . 1 . . . 4 . 4 . 1 . 5 . . . Recyclers Shooed 3 | . 1 . . . . . 2 . . . . . . . Parts Field Recycled . | . . . . . . . . . . . . . . . Retrieved Matter . | . . . . . . . . . . . . . . . Parts Self-Destructed 6 | . . . . . . . . . . . . . 6 . Prevented . | . . . . . . . . . . . . . . . Kills | -11 -10 -10 -10 -9 -8 -8 -8 -8 -7 -7 -7 -7 -7 -7 ------- Run | Scr Mat Min Exi Min Mat Gar Mat Gar Fac Gar Fac Low Low Zio Combat Hostiles Destroyed 127 | . 11 11 . . 13 10 24 17 8 11 7 . 5 10 Melee 8 | . . . . . 3 . 2 2 1 . . . . . Guns 50 | . 9 . . . 5 4 15 2 4 2 5 . 1 3 Cannons 14 | . . 8 . . 3 . . . . . . . . 3 AOE 44 | . 1 3 . . 2 6 4 12 . 8 2 . 4 2 Classes Destroyed 25 | 2 6 1 . . 2 2 2 2 1 . . 1 . 6 Worker 8 | . 1 . . . 2 . 2 . 3 . . . . . Builder 4 | . . . . . . . 2 . 2 . . . . . Tunneler 6 | 1 1 . . 2 1 . 1 . . . . . . . Hauler 15 | . 1 . . . 4 . 4 . 1 . 5 . . . Recycler 10 | 1 1 1 . . . . 4 . 2 . 1 . . . Operator 2 | . 1 . . . . . . . 1 . . . . . Watcher 5 | . 2 . . . 1 . 2 . . . . . . . Swarmer 36 | . 6 . . . 1 . 5 12 . 8 . . 4 . Cutter 3 | . . . . . . 3 . . . . . . . . Grunt 41 | . 5 1 . . 7 6 9 3 3 3 4 . . . Brawler 2 | . . . . . . . . 1 . . 1 . . . Duelist 3 | . . . . . . . . 1 1 . 1 . . . Sentry 14 | . . . . . 4 . 7 . 2 . 1 . . . Specialist 2 | . . . . . . . 2 . . . . . . . Hunter 1 | . . . . . . 1 . . . . . . . . Programmer 3 | . . . . . . . . . 2 . . . 1 . Heavy 3 | . . . . . 1 . 1 . . . 1 . . . Zionite 53 | . . . . . . . . . . . . . . 53 Packrat 1 | . . . . . . . . . . . . 1 . . Samaritan 1 | . . . . . . . . . . . . 1 . . Tinkerer 6 | . . . . . . . . . . . . . . 6 Assembled 10 | . . 10 . . . . . . . . . . . . Surgeon 1 | . . . . . . . . . . . . . . 1 Thug 1 | . . . . . . . . . . . . . . 1 Martyr 1 | . . . . . . . . . . . . . . 1 Marauder 2 | . . . . . . . . . . . . . . 2 Mutant 5 | . . . . . . . . . . . . . . 5 Best Kill Streak 11 | 1 7 4 . 1 4 6 11 10 4 4 3 . 4 11 Combat Bots Only 10 | . 5 4 . . 3 6 8 10 2 4 3 . 4 1 Max Kills in Single Turn 4 | 1 2 1 . 1 1 1 3 4 3 3 1 1 3 2 Gunslinging . | . . . . . . . . . . . . . . . Exploded 4 | . 1 1 . . 1 1 3 4 . 3 1 . 3 1 Melee 1 | . . . . . 1 . 1 1 1 . . . . . Uniques/NPCs Destroyed 2 | . . . . 1 . . . . . . . . . 1 YI-UF0 (-9/Mines) Imprinter (-7/Zion) Combat | -11 -10 -10 -10 -9 -8 -8 -8 -8 -7 -7 -7 -7 -7 -7 -------- Run | Scr Mat Min Exi Min Mat Gar Mat Gar Fac Gar Fac Low Low Zio Damage Taken 11384 | . 422 778 . . 649 777 1290 649 1058 426 505 . 71 4759 Core 1067 | . 42 134 . . 52 24 62 47 29 76 67 . 14 520 Absorbed by Shields 133 | . . . . . . . . . 91 42 . . . . Redirected to Shielding 109 | . . . . . . . . . . . 109 . . . Regen/Repaired (Parts) 691 | . . . . . . . 484 . . . 207 . . . Core Remaining (%) 65 | 100 . . . 29 . . . 66 . . . . . . Volleys Fired 668 | 4 58 31 . 8 66 37 62 88 30 25 43 . 7 209 Largest 2 | 2 2 2 . 2 2 2 2 2 2 2 2 . 2 2 Hottest 114 | 100 100 78 . 78 64 50 50 50 50 50 53 . 53 114 Shots Fired 1154 | 8 113 57 . 16 127 54 118 106 55 29 80 . 14 377 Gun 753 | 8 110 16 . 14 107 32 113 73 50 9 73 . 12 136 Cannon 269 | . . 38 . 2 17 . . . . . . . . 212 Launcher 89 | . 3 3 . . 3 22 5 7 . 10 5 . 2 29 Special 43 | . . . . . . . . 26 5 10 2 . . . Kinetic 977 | . 76 54 . 16 124 32 113 73 50 9 73 . 12 345 Thermal 45 | 8 34 . . . . . . . . . . . . 3 Explosive 42 | . 3 3 . . 3 6 . 7 . 6 1 . 2 11 Electromagnetic 47 | . . . . . . 16 5 . . 4 4 . . 18 Robot Hit Streak 35 | 7 10 8 . 4 8 5 10 35 10 10 23 . 5 17 Robot Miss Streak 7 | . 4 5 . 2 3 4 3 3 1 1 2 . 2 7 Penetration Max 1 | . . . . . . . . . . . 1 . . . Secondary Targets 7 | . 2 . . . . 1 1 . . . 2 . . 1 Max Gunslinging Chain 1 | . 1 . . . . 1 1 . . . 1 . . 1 Shots Hit Robots 762 | 7 67 33 . 11 85 21 94 79 66 17 56 3 8 215 Core Hits 362 | 1 33 21 . 6 39 22 50 27 12 17 25 1 7 101 Critical Kills 22 | . . . . . 1 . 1 . . . . . . 20 Critical Parts Destroyed 33 | . . . . . 1 . 3 1 3 . . . . 25 Critical Strikes 71 | 1 4 . . . 4 . 4 1 3 . . . . 54 Burn 5 | 1 4 . . . . . . . . . . . . . Destroy 50 | . . . . . . . . . . . . . . 50 Blast 2 | . . . . . 2 . . . . . . . . . Smash 14 | . . . . . 2 . 4 1 3 . . . . 4 Melee Attacks 143 | . . . . . 9 . 33 9 41 4 5 16 . 26 Impact 141 | . . . . . 9 . 33 9 41 4 5 16 . 24 Slashing . | . . . . . . . . . . . . . . . Piercing 2 | . . . . . . . . . . . . . . 2 Sneak Attacks 28 | . . . . . 1 . 7 4 13 1 . 2 . . Combat Hostiles 12 | . . . . . . . . 4 7 1 . . . . Follow-up Attacks . | . . . . . . . . . . . . . . . Damage Inflicted 21004 | 88 839 688 . 159 1883 1157 2622 2186 2514 782 1201 237 376 6272 Guns 7920 | 88 660 99 . 117 1146 256 1170 665 636 69 952 . 196 1866 Cannons 3035 | . . 395 . 42 258 . . . . . . . . 2340 Explosions 5278 | . 179 194 . . 184 901 207 834 386 596 249 . 180 1368 Melee 4757 | . . . . . 295 . 1231 687 1492 117 . 237 . 698 Ramming 14 | . . . . . . . 14 . . . . . . . Kinetic 10564 | . 411 494 . 159 1404 256 1170 665 636 69 952 . 196 4152 Thermal 712 | 88 249 . . . . . . . 273 . 48 . . 54 Explosive 3729 | . 179 194 . . 184 551 . 834 113 445 . . 180 1049 Electromagnetic 1228 | . . . . . . 350 207 . . 151 201 . . 319 Impact 4733 | . . . . . 295 . 1231 687 1492 117 . 237 . 674 Slashing . | . . . . . . . . . . . . . . . Piercing 24 | . . . . . . . . . . . . . . 24 Highest Corruption 27 | . . . . . 1 1 1 1 3 3 7 7 7 27 Average Corruption 3 | . . . . . 1 1 1 1 2 3 4 7 7 14 Corruption Purged 3 | . . . . . . . . . . . 3 . . . Corruption Blocked . | . . . . . . . . . . . . . . . Effects 131 | . . . . . 4 7 9 11 4 7 30 24 15 20 Message Errors 36 | . . . . . 2 3 2 5 3 1 5 10 . 5 Matter Fused 35 | . . . . . . 2 2 4 . 1 11 4 6 5 Heat Flow Errors 10 | . . . . . . . . 1 . 2 4 1 1 1 Energy Discharges 17 | . . . . . 1 1 1 . . . 4 7 1 2 Parts Rejected 3 | . . . . . . . 1 . . . . . . 2 Data Loss (minor) 16 | . . . . . . . 1 1 . 1 5 2 4 2 Data Loss (major) 6 | . . . . . . . 1 . 1 1 . . 1 2 Misfires 4 | . . . . . . 1 . . . . 1 . 2 . Alerts 3 | . . . . . 1 . 1 . . 1 . . . . Misdirections 1 | . . . . . . . . . . . . . . 1 Overload Shots . | . . . . . . . . . . . . . . . Overflow Damage 2095 | . 7 8 . . 86 17 441 410 657 69 . 142 . 258 Projectiles 33 | . . . . . 4 . 12 . . . . . . 17 Explosions 214 | . 7 8 . . . 17 . 87 81 . . . . 14 Melee 1848 | . . . . . 82 . 429 323 576 69 . 142 . 227 Knockbacks 42 | . . 6 . . 5 . 8 2 5 1 . . . 15 Impact 17 | . . . . . 1 . 5 2 5 1 . . . 3 Kinetic 20 | . . 5 . . 3 . . . . . . . . 12 Secondary 5 | . . 1 . . 1 . 3 . . . . . . . Self-Inflicted Damage 683 | . 18 23 . . 38 120 33 109 . 55 . . . 287 Shots 32 | . 1 2 . . 1 7 1 3 . 2 . . . 15 Rammed 1 | . . . . . . . 1 . . . . . . . Targets Rammed 1 | . . . . . . . 1 . . . . . . . Kicked . | . . . . . . . . . . . . . . . Crushed . | . . . . . . . . . . . . . . . Highest Temperature 324 | 117 213 84 . 12 217 115 264 284 251 242 206 180 134 324 Average Temperature 75 | 55 65 30 . 5 40 35 76 93 101 65 42 96 46 116 Received Heat Transfer 2006 | . 120 184 . . 285 270 414 180 234 116 102 . . 101 Effects 1 | . . . . . . . . . . . . . . 1 Interference 1 | . . . . . . . . . . . . . . 1 Siege Activations . | . . . . . . . . . . . . . . . Robots Corrupted 1 | . . . . . . . . . . . . . . 1 Combat Hostiles . | . . . . . . . . . . . . . . . Parts Fried 25 | . . . . . . 2 7 1 9 1 . 4 . 1 Impact Corruptions 62 | . . . . . 4 . 16 6 20 2 . 7 . 7 Robots Melted 2 | 1 1 . . . . . . . . . . . . . Combat Hostiles 1 | . 1 . . . . . . . . . . . . . Parts Melted 6 | 1 3 . . . . . . . 1 . . . . 1 Heat Transferred 1743 | 333 1036 . . . . . . . 250 . 50 . . 74 Parts Sabotaged . | . . . . . . . . . . . . . . . Parts Stolen . | . . . . . . . . . . . . . . . Parts Stripped . | . . . . . . . . . . . . . . . Power Chain Reactions 4 | . . . . . . . 1 . . . 1 . . 2 Missiles Intercepted . | . . . . . . . . . . . . . . . Alert | -11 -10 -10 -10 -9 -8 -8 -8 -8 -7 -7 -7 -7 -7 -7 ------- Run | Scr Mat Min Exi Min Mat Gar Mat Gar Fac Gar Fac Low Low Zio Peak Influence 1201 | 10 286 149 . 10 260 563 907 1201 771 874 475 . . . Initial 630 | . 6 87 . . . 169 274 527 630 539 458 . . . Average 386 | 5 131 78 . 1 99 453 609 958 612 702 305 . . . Maximum Alert Level 4 | . 1 . . . 1 2 3 4 3 3 2 . . . Low Security (%) 39 | 100 81 100 . 100 91 18 . . . . 3 . . . Level 1 16 | . 18 . . . 8 8 18 . . . 71 . . . Level 2 27 | . . . . . . 73 45 21 87 60 24 . . . Level 3 12 | . . . . . . . 35 40 12 39 . . . . Level 4 4 | . . . . . . . . 38 . . . . . . Level 5 . | . . . . . . . . . . . . . . . High Security . | . . . . . . . . . . . . . . . Max Security . | . . . . . . . . . . . . . . . Squads Dispatched 14 | . 3 . . 1 1 . 2 . 3 . 4 . . . Investigation 3 | . 1 . . 1 . . . . 1 . . . . . Extermination 3 | . . . . . . . . . 1 . 2 . . . Reinforcement 7 | . 2 . . . 1 . 2 . 1 . 1 . . . Assault . | . . . . . . . . . . . . . . . Garrison 1 | . . . . . . . . . . . 1 . . . Intercept . | . . . . . . . . . . . . . . . Searches Triggered . | . . . . . . . . . . . . . . . Construction Impeded 1 | . . . . . . . . . 1 . . . . . Haulers Reinforced 1 | . . . . . . . . . . . 1 . . . Active Scanning Responses . | . . . . . . . . . . . . . . . Cargo Convoy Interrupts . | . . . . . . . . . . . . . . . Alert ID Control Effect 7 | . . . . . . . . . . . 7 . . . Stealth | -11 -10 -10 -10 -9 -8 -8 -8 -8 -7 -7 -7 -7 -7 -7 --------- Run | Scr Mat Min Exi Min Mat Gar Mat Gar Fac Gar Fac Low Low Zio Distress Signals 8 | . 2 1 . . 2 . 2 . . . 1 . . . Communications Jammed 3 | . . . . . 2 . 1 . . . . . . . Distress Signals 1 | . . . . . 1 . . . . . . . . . Times Spotted 257 | . 19 18 . . 28 11 37 25 19 13 14 . 1 72 Peak Tracking Total 9 | . 6 9 . . 3 6 9 9 4 4 4 . 1 6 Tactical Retreats 18 | . . 4 . . 1 1 3 1 1 . . . . 7 Traps | -11 -10 -10 -10 -9 -8 -8 -8 -8 -7 -7 -7 -7 -7 -7 ------- Run | Scr Mat Min Exi Min Mat Gar Mat Gar Fac Gar Fac Low Low Zio Traps Triggered 16 | . . . . . 1 4 . 5 1 4 1 . . . Indirectly . | . . . . . . . . . . . . . . . Trap Hack Attempts . | . . . . . . . . . . . . . . . Triggered . | . . . . . . . . . . . . . . . Disarmed . | . . . . . . . . . . . . . . . Reprogrammed . | . . . . . . . . . . . . . . . Reused . | . . . . . . . . . . . . . . . Traps Extracted . | . . . . . . . . . . . . . . . Installed . | . . . . . . . . . . . . . . . Triggered 2 | . . . . . . . 1 . . . . . 1 . Most Traps Carried 3 | . . 3 3 3 3 . . . . . . . . . Machines | -11 -10 -10 -10 -9 -8 -8 -8 -8 -7 -7 -7 -7 -7 -7 ---------- Run | Scr Mat Min Exi Min Mat Gar Mat Gar Fac Gar Fac Low Low Zio Machines Disabled 24 | . . . . . 2 2 4 4 7 2 . . . 3 Max in Single Turn 7 | . . . . . 1 2 1 1 7 1 . . . 1 Garrison Access 2 | . . . . . . . . . . . 2 . . . Garrison Relay 6 | . . . . . . . . 4 . 2 . . . . Machines Sabotaged . | . . . . . . . . . . . . . . . Garrisons Compromised . | . . . . . . . . . . . . . . . Overloaded Fab Kills . | . . . . . . . . . . . . . . . Hacking | -11 -10 -10 -10 -9 -8 -8 -8 -8 -7 -7 -7 -7 -7 -7 --------- Run | Scr Mat Min Exi Min Mat Gar Mat Gar Fac Gar Fac Low Low Zio Machines Accessed 42 | . 5 1 2 1 12 . 7 . 5 . 9 . . . Terminals 25 | . 4 . . . 10 . 5 . 3 . 3 . . . Fabricators 2 | . . . . . . . . . . . 2 . . . Repair Stations 3 | . . . . . 1 . 1 . . . 1 . . . Recycling Units 1 | . 1 . . . . . . . . . . . . . Scanalyzers 2 | . . . . . . . . . 1 . 1 . . . Garrison Access 5 | . . . . . 1 . 1 . 1 . 2 . . . Total Hacks 93 | . 16 1 2 1 31 . 13 . 11 . 18 . . . Successful 50 | . 8 1 2 1 14 . 9 . 5 . 10 . . . Failed 43 | . 8 . . . 17 . 4 . 6 . 8 . . . Catastrophic 5 | . 1 . . . . . 1 . 1 . 2 . . . Database Lockouts . | . . . . . . . . . . . . . . . Manual 17 | . 6 . 1 . 5 . 1 . . . 4 . . . Terminals 66 | . 15 . . . 27 . 9 . 7 . 8 . . . Fabricators 3 | . . . . . . . . . . . 3 . . . Repair Stations 7 | . . . . . 2 . 2 . . . 3 . . . Recycling Units 1 | . 1 . . . . . . . . . . . . . Scanalyzers 4 | . . . . . . . . . 2 . 2 . . . Garrison Access 8 | . . . . . 2 . 2 . 2 . 2 . . . Terminal Hacks 31 | . 7 1 2 1 11 . 5 . 2 . 2 . . . Record 1 | . . . 1 . . . . . . . . . . . Prototype ID Bank 9 | . 3 . . . 5 . 1 . . . . . . . Open Door 2 | . . 1 . 1 . . . . . . . . . . Open DSF 1 | . . . . . . . . . . . 1 . . . Branch Access Points 1 | . . . . . . . . . 1 . . . . . Terminal Index 3 | . . . . . 1 . 1 . 1 . . . . . Unreport Threat 2 | . . . . . 2 . . . . . . . . . Locate Traps 3 | . 1 . . . 1 . 1 . . . . . . . Hauler Manifests 1 | . 1 . . . . . . . . . . . . . Zone Layout 7 | . 2 . . . 2 . 2 . . . 1 . . . EX-Prototype ID Bank 1 | . . . 1 . . . . . . . . . . . Fabricator Hacks 1 | . . . . . . . . . . . 1 . . . Build 1 | . . . . . . . . . . . 1 . . . Repair Station Hacks 5 | . . . . . 1 . 2 . . . 2 . . . Scan Component 3 | . . . . . 1 . 1 . . . 1 . . . Repair 2 | . . . . . . . 1 . . . 1 . . . Recycling Unit Hacks . | . . . . . . . . . . . . . . . Scanalyzer 3 | . . . . . . . . . 1 . 2 . . . Insert Component 2 | . . . . . . . . . 1 . 1 . . . Analyze 1 | . . . . . . . . . . . 1 . . . Garrison Access Hacks 7 | . . . . . 1 . 2 . 2 . 2 . . . Unlock Access 3 | . . . . . 1 . 1 . 1 . . . . . Seal Access 2 | . . . . . . . . . . . 2 . . . Coupler Status 2 | . . . . . . . 1 . 1 . . . . . Unauthorized Hacks 3 | . 1 . . . 1 . . . . . 1 . . . Terminals 1 | . . . . . 1 . . . . . . . . . Botnet 1 | . . . . . 1 . . . . . . . . . Fabricators 1 | . . . . . . . . . . . 1 . . . Prioritize 1 | . . . . . . . . . . . 1 . . . Repair Stations . | . . . . . . . . . . . . . . . Recycling Units 1 | . 1 . . . . . . . . . . . . . Tunnel 1 | . 1 . . . . . . . . . . . . . Scanalyzers . | . . . . . . . . . . . . . . . Garrison Access . | . . . . . . . . . . . . . . . Data Cores Recovered 1 | . . . . . 1 . . . . . . . . . Used . | . . . . . . . . . . . . . . . Hacking Detections 32 | . 3 . . . 11 . 7 . 4 . 7 . . . Full Trace Events 1 | . . . . . . . . . 1 . . . . . Feedback Events . | . . . . . . . . . . . . . . . Feedback Blocked . | . . . . . . . . . . . . . . . Robot Schematics Acquired 4 | . . . . . . . . . . . . . . 4 Robots Built . | . . . . . . . . . . . . . . . Authchips . | . . . . . . . . . . . . . . . Time . | . . . . . . . . . . . . . . . Total Robot Build Rating . | . . . . . . . . . . . . . . . Part Schematics Acquired 16 | . . . . . . . . . . . 1 . . 15 Parts Built 2 | . . . . . . . . . . . 2 . . . Authchips . | . . . . . . . . . . . . . . . Time 117 | . . . . . . . . . . . 117 . . . Total Part Build Rating 14 | . . . . . . . . . . . 14 . . . Parts Repaired 2 | . . . . . . . 1 . . . 1 . . . Time 58 | . . . . . . . 44 . . . 14 . . . Parts Recycled . | . . . . . . . . . . . . . . . Recycled Matter . | . . . . . . . . . . . . . . . Retrieved Matter . | . . . . . . . . . . . . . . . Retrieved Components . | . . . . . . . . . . . . . . . Parts Scanalyzed 1 | . . . . . . . . . 1 . . . . . Part Schematics Acquired 1 | . . . . . . . . . . . 1 . . . Parts Damaged . | . . . . . . . . . . . . . . . Bothacking | -11 -10 -10 -10 -9 -8 -8 -8 -8 -7 -7 -7 -7 -7 -7 ------------ Run | Scr Mat Min Exi Min Mat Gar Mat Gar Fac Gar Fac Low Low Zio Used RIF Installer 3 | . . . . . . 1 . 1 . 1 . . . . Hotswap 1 | . . . . . . . . 1 . . . . . . Alert ID Control 1 | . . . . . . . . . . 1 . . . . Robots Hacked 19 | . . . . . . . . 9 5 4 1 . . . Non-combat . | . . . . . . . . . . . . . . . Combat 19 | . . . . . . . . 9 5 4 1 . . . Robot Hacks Applied 22 | . . . . . . . . 11 5 5 1 . . . disrupt_area 1 | . . . . . . . . 1 . . . . . . amplify_resonance 8 | . . . . . . . . 5 2 1 . . . . reboot_system 7 | . . . . . . . . 3 2 1 1 . . . go_dormant 1 | . . . . . . . . . 1 . . . . . formatsys_high 5 | . . . . . . . . 2 . 3 . . . . Relay Couplers Released 21 | . . . . . . . . 15 . 6 . . . . Machine Destruction 21 | . . . . . . . . 15 . 6 . . . . Attached 6 | . . . . . . . . 3 1 2 . . . . Fabnet Peak Effective % . | . . . . . . . . . . . . . . . Robots Rewired . | . . . . . . . . . . . . . . . Allies Hacked . | . . . . . . . . . . . . . . . Hacks Repelled . | . . . . . . . . . . . . . . . Allies | -11 -10 -10 -10 -9 -8 -8 -8 -8 -7 -7 -7 -7 -7 -7 -------- Run | Scr Mat Min Exi Min Mat Gar Mat Gar Fac Gar Fac Low Low Zio Total Allies 10 | . . . . 3 1 . . 2 . 3 1 . . . Largest Group 3 | . . . . 3 3 . . 1 . 3 3 . . . Highest-Rated Group 122 | . . . . 40 90 . . 15 . 84 122 . . . Highest-Rated Ally 90 | . . . . 16 90 . . 15 . 32 90 . . . Total Orders 2 | . . . . . 1 . 1 . . . . . . . RETURN 2 | . . . . . 1 . 1 . . . . . . . Ally Attacks 105 | . . . . . 52 . 1 13 . 5 34 . . . Total Damage 2153 | . . . . . 548 . 2 287 . 68 1248 . . . Kills 18 | . . . . . 6 . . 2 . . 10 . . . Allies Corrupted 1 | . . . . . 1 . . . . . . . . . Allies Melted . | . . . . . . . . . . . . . . . Field Lobotomies 1 | . . . . . . . . . . . 1 . . . Intel | -11 -10 -10 -10 -9 -8 -8 -8 -8 -7 -7 -7 -7 -7 -7 ------- Run | Scr Mat Min Exi Min Mat Gar Mat Gar Fac Gar Fac Low Low Zio Robot Analysis Total . | . . . . . . . . . . . . . . . Derelict Logs Recovered 4 | . . 1 . 1 . . . . . . . 1 1 . Drone Launches 9 | . . . . . 6 . 3 . . . . . . . Drone Recoveries 8 | . . . . . 5 . 3 . . . . . . . Exploration | -11 -10 -10 -10 -9 -8 -8 -8 -8 -7 -7 -7 -7 -7 -7 ------------- Run | Scr Mat Min Exi Min Mat Gar Mat Gar Fac Gar Fac Low Low Zio Turns Passed 15308 | 43 1167 609 751 1122 1599 621 1279 1381 1145 471 1614 942 476 2088 Spaces Moved 7383 | 17 537 208 313 453 933 322 529 693 575 243 987 618 318 637 Core . | . . . . . . . . . . . . . . . Treads 1537 | 17 537 208 313 453 . . 1 2 . . . . . 6 Legs 167 | . . . . . . . . . . . . . . 167 Wheels 5679 | . . . . . 933 322 528 691 575 243 987 618 318 464 Hover . | . . . . . . . . . . . . . . . Flight . | . . . . . . . . . . . . . . . Fastest Speed 115 | 160 160 240 240 240 115 145 145 160 145 125 125 140 140 140 Average Speed 161 | 160 179 240 240 240 136 145 149 161 158 129 131 140 140 172 Slowest Speed 570 | 160 240 240 240 240 150 145 320 312 160 160 140 140 140 570 Overloaded Moves . | . . . . . . . . . . . . . . . Propulsion Burnouts . | . . . . . . . . . . . . . . . Robots Hopped . | . . . . . . . . . . . . . . . Cave-ins Triggered . | . . . . . . . . . . . . . . . Exploration Rate (%) 56 | 3 85 45 69 80 79 65 49 81 12 66 27 78 51 60 Regions Visited 14 Branch Regions 6 Pre-discovered Areas 2 | . 1 . 1 . . . . . . . . . . . Known Exits Taken 6 | . . . . . 1 . 1 . 1 . 1 1 1 . Unknown Exits Taken 5 | 1 1 1 1 1 . . . . . . . . . . Scrap Searched 14 | . . 1 . 3 . . . . . . . 4 3 3 Spaces Dug 61 | . 19 . . . 2 . 2 8 11 . 9 10 . . Terrain Destroyed 304 | . 25 27 . . 33 16 7 48 27 38 12 10 12 49 Melee 29 | . . . . . 2 . 2 . 11 . 4 10 . . Projectile 43 | . . 3 . . 1 1 . . . 1 . . . 37 AOE 232 | . 25 24 . . 30 15 5 48 16 37 8 . 12 12 Terrain Rammed . | . . . . . . . . . . . . . . . Walls Destroyed . | . . . . . . . . . . . . . . . Machines Disabled . | . . . . . . . . . . . . . . . Actions | -11 -10 -10 -10 -9 -8 -8 -8 -8 -7 -7 -7 -7 -7 -7 --------- Run | Scr Mat Min Exi Min Mat Gar Mat Gar Fac Gar Fac Low Low Zio Total 9550 | 27 642 263 314 477 1158 430 881 870 703 364 1228 665 338 1190 Wait 824 | . 14 10 . 3 76 22 218 21 38 41 118 24 8 231 Move 7371 | 16 536 207 312 452 933 321 529 692 574 242 986 617 317 637 Hop . | . . . . . . . . . . . . . . . Pick Up 113 | 1 16 3 2 7 21 1 8 9 6 4 15 2 2 16 Fast Attach 46 | . 1 2 . 1 4 1 5 2 2 3 11 . . 14 Attach 42 | 2 2 4 . . 3 2 2 4 3 3 2 . . 15 Detach 4 | . . 1 . . . . . . . . 1 . . 2 Swap 151 | . 8 4 . 2 20 12 14 15 7 15 21 5 3 25 Drop 111 | 4 7 1 . 4 26 2 9 10 2 3 26 1 1 15 Fire 668 | 4 58 31 . 8 66 37 62 88 30 25 43 . 7 209 Melee 143 | . . . . . 9 . 33 9 41 4 5 16 . 26 Ram . | . . . . . . . . . . . . . . . Kick . | . . . . . . . . . . . . . . . Crush 1 | . . . . . . . 1 . . . . . . . Escape Stasis 76 | . . . . . . 32 . 20 . 24 . . . . Rewire . | . . . . . . . . . . . . . . . Trap . | . . . . . . . . . . . . . . . Miscellaneous . | . . . . . . . . . . . . . . . Route ------- -11/Scrapyard -10/Materials (discovered 2 exits: [*Mat] / *Min) -10/Mines -10/Exiles -9/Mines -8/Materials (discovered 4 exits: *Fac x3 / Gar) -8/Garrison (discovered 3 exits: *Mat x3) -8/Materials (discovered 2 exits: *Fac / Gar) -8/Garrison (discovered 3 exits: *Fac x3) -7/Factory (discovered 3 exits: Low x2 / Gar) -7/Garrison (discovered 2 exits: *Fac x2) -7/Factory -7/Lower Caves -7/Lower Caves -7/Zion (discovered 1 exit: [*Pro]) History --------- Turn | Location | Event 8 | -11/Scrapyard | Discovered new exit (range 3) 44 | -11/Scrapyard | Entered Materials 309 | -10/Materials | Build established: Mutant 399 | -10/Materials | Discovered new exit (range 6) 460 | -10/Materials | Discovered new exit (range 20) 1211 | -10/Materials | Entered Mines 1229 | -10/Mines | Learned Materials emergency access door positions 1376 | -10/Mines | Found a hidden stash of uninstalled traps 1457 | -10/Mines | Found the Drone Emporium 1468 | -10/Mines | Found Prototype Device 1468 | -10/Mines | Identified Splice Drone Bay 1549 | -10/Mines | Assembled infested the area 1625 | -10/Mines | Core integrity fell below 50% 1808 | -10/Mines | Deemed a non-threat by the Exiles lab entrance 1808 | -10/Mines | Discovered new exit (range 6) 1820 | -10/Mines | Entered Exiles 1885 | -10/Exiles | Met 8R-AWN 1919 | -10/Exiles | Met EX-HEX 2059 | -10/Exiles | Met EX-DEC 2102 | -10/Exiles | Learned location of Zion (-7) 2148 | -10/Exiles | Met EX-BIN 2181 | -10/Exiles | Aligned with FarCom system 2184 | -10/Exiles | Given EX-Vault access code 2244 | -10/Exiles | Opened EX-Vault 2258 | -10/Exiles | Found Field Lobotomy Kit 2307 | -10/Exiles | Warned to stay clear of 0b10 Research branches 2540 | -10/Exiles | Discovered new exit (range 14) 2571 | -10/Exiles | Left Exiles lab with Field Lobotomy Kit 2571 | -10/Exiles | Entered Mines 2578 | -9/Mines | Met a Derelict bent on vengeance 2715 | -9/Mines | Assisted by bots powering up and referring to "LRC-V3" 3122 | -9/Mines | Met a Derelict shopkeep closing up shop 3635 | -9/Mines | YI-UF0 nonchalantly dropped a Grenade Launcher on the ground 3650 | -9/Mines | Destroyed YI-UF0 3663 | -9/Mines | Found Prototype Storage 3678 | -9/Mines | Discovered new exit (range 7) 3693 | -9/Mines | Entered Materials 3693 | -8/Materials | Accompanied by 3 allies 3693 | -8/Materials | Evolved 4 slots: Propulsion x2, Utility x2 3979 | -8/Materials | Discovered new exit (range 3) 4160 | -8/Materials | Identified YI-UF0's Bottomless Matter Pit 4242 | -8/Materials | Discovered new exit (range 16) 4536 | -8/Materials | Discovered new exit (range 7) 4569 | -8/Materials | Build established: Scavenger-Mutant 5268 | -8/Materials | Build established: Mutant 5292 | -8/Materials | Identified exit to Garrison 5292 | -8/Materials | Entered Garrison 5447 | -8/Garrison | Triggered checkpoint 5481 | -8/Garrison | Triggered checkpoint 5521 | -8/Garrison | Lost 3 parts (1p1n1u) 5568 | -8/Garrison | Discovered new exit (range 9) 5748 | -8/Garrison | Discovered new exit (range 13) 5818 | -8/Garrison | Triggered checkpoint 5885 | -8/Garrison | Discovered new exit (range 9) 5907 | -8/Garrison | Installed Relay Interface Framework 5913 | -8/Garrison | Entered Materials 6598 | -8/Materials | Discovered new exit (range 9) 6835 | -8/Materials | Destroyed 8 combat bots 6897 | -8/Materials | Repaired Hrd. Heavy Armor Plating 7192 | -8/Materials | Identified exit to Garrison 7192 | -8/Materials | Entered Garrison 7222 | -8/Garrison | Triggered checkpoint 7277 | -8/Garrison | Garrison Relay disabled 7533 | -8/Garrison | Destroyed 10 combat bots 7591 | -8/Garrison | Discovered new exit (range 12) 7620 | -8/Garrison | Expanded RIF knowledge: Hotswap 7704 | -8/Garrison | Garrison Relay disabled 7718 | -8/Garrison | Triggered checkpoint 7876 | -8/Garrison | Discovered new exit (range 15) 7894 | -8/Garrison | Triggered checkpoint 7922 | -8/Garrison | Garrison Relay disabled 7987 | -8/Garrison | Triggered checkpoint 8019 | -8/Garrison | Build established: Bothacker-Mutant 8060 | -8/Garrison | Triggered checkpoint 8444 | -8/Garrison | Triggered checkpoint 8469 | -8/Garrison | Garrison Relay disabled 8538 | -8/Garrison | Triggered checkpoint 8549 | -8/Garrison | Discovered new exit (range 14) 8573 | -8/Garrison | Entered Factory 8573 | -7/Factory | Evolved 2 slots: Utility x2 9055 | -7/Factory | Identified exit to Garrison 9235 | -7/Factory | Identified exit to Lower Caves 9718 | -7/Factory | Entered Garrison 9752 | -7/Garrison | Triggered checkpoint 9813 | -7/Garrison | Garrison Relay disabled 9815 | -7/Garrison | Lost 3 parts (1n2u) 9888 | -7/Garrison | Triggered checkpoint 9934 | -7/Garrison | Discovered new exit (range 8) 9950 | -7/Garrison | Expanded RIF knowledge: Alert ID Control 9998 | -7/Garrison | Triggered checkpoint 10096 | -7/Garrison | Triggered checkpoint 10136 | -7/Garrison | Garrison Relay disabled 10168 | -7/Garrison | Discovered new exit (range 8) 10189 | -7/Garrison | Entered Factory 10189 | -7/Factory | Accompanied by 3 allies 10551 | -7/Factory | Fabricated Adv. Focal Shield (x2) 10898 | -7/Factory | Assimilated H-61 Shepherd with FLK Orb 10993 | -7/Factory | Garrison activated, responded to threat 11751 | -7/Factory | Repaired Hrd. Heavy Armor Plating 11767 | -7/Factory | Discovered exit to Lower Caves (range 4) 11803 | -7/Factory | Entered Lower Caves 12253 | -7/Lower Caves | Discovered new exit (range 11) 12270 | -7/Lower Caves | Identified exit to Lower Caves 12339 | -7/Lower Caves | Build established: Scavenger-Assassin 12492 | -7/Lower Caves | Learned location of 1 exit from Lower Caves 12745 | -7/Lower Caves | Entered another Lower Caves area 12746 | -7/Lower Caves | Identified exit to Zion 12958 | -7/Lower Caves | Encountered a Warlord checkpoint 13043 | -7/Lower Caves | Build established: Scavenger-Skirmisher 13221 | -7/Lower Caves | Entered Zion 13283 | -7/Zion | System corruption cleaned by Quarantine Array 13325 | -7/Zion | Discovered new exit (range 14) 13662 | -7/Zion | RIF detected upon attempting to enter Zion 13662 | -7/Zion | Attacked by Zionites 13664 | -7/Zion | Spotted DQ-0OQ(B) 13830 | -7/Zion | Build established: Scavenger-Mutant 13857 | -7/Zion | Destroyed Imprinter 13865 | -7/Zion | Extracted access codes from Imprinter's data core 13985 | -7/Zion | Destroyed DQ-0OQ(B) 14005 | -7/Zion | Spotted P4-MJY(B) 14095 | -7/Zion | Destroyed P4-MJY(B) 14602 | -7/Zion | Core integrity fell below 50% 14649 | -7/Zion | Lost 4 parts (1n2u1w) 14993 | -7/Zion | Found Rocket Array 15042 | -7/Zion | Core integrity fell below 20% 15056 | -7/Zion | System corruption reached 10% 15110 | -7/Zion | Lost 5 parts (3n2w) 15159 | -7/Zion | Lost 3 parts (1p2n) 15277 | -7/Zion | Lost 3 parts (2u1w) 15309 | -7/Zion | Destroyed by 5X-7R6(z) with Makeshift Hammer Last Messages --------------- 15283_ Prc. Assault Rifle destroyed. 15283_ Destroyed Prc. Assault Rifle. 15283_ Mak. Leg destroyed. 15283_ Destroyed Mak. Leg. 15283_ Mak. Armor Plating destroyed. 15283_ Destroyed Mak. Armor Plating. 15286_ Destroyed Particle Charger. 15286_ CH-J02(z) destroyed. 15288_ System corrupted: Rocket Array rejected. 15290_ 90-KEX(M) destroyed. 15296_ Destroyed Mak. Leg. 15298_ The unstable cave ceiling collapses. 15298_ Dropped YI-UF0's Bottomless Matter Pit. 15299_ Extracted 297 matter. 15304_ Acquired YI-UF0's Bottomless Matter Pit. 15307_ WGM1O/>4KFOMSM1YBFXHUBRL 15309_ The unstable cave ceiling collapses. 15309_ Destroyed Mak. Power Source. 15309_ Arm. Treads destroyed. 15309_ System corrupted by crushing effect (+5). Map ----- +----------------------------------------------------+ | ???????????#"" """ " ?????? ????? | | ???????????#"" """ " ?????? ????? | | ??????????##"" """" ??????? ????? | | ??????????#""" " "" ??????? ??#" ????? | | ??????????#"#" """ ????????????????????? | | ??????????##"" """" ???????????????????? | | ?????????##"" """""""" ???????????????????? | | ?????????#""" """###""" ????????????????????? | | ?????#####""" """""""#"? ????????????????????? | | ?????# ]#% "" """#????? ????????????????????? | | ????## "%= ""#???????????????????????????? | | ????#][* """#??????????????????????????? | | ????## ="% "" """""??????????????????????????? | | ?????#] ##/== "" """""??? ??????????????????????? | | ?????####" = "" """"""?? "?????????????????? | | ????????#""/ " """?? ""????????????????? | | ????????##"%* """ """"" """"??????????????? | | ?????????##" / "" "#""""" """"""????????????? | | ???????# "# = " """"""" " """"????????????? | | ??????#" """" """"" " ????????????? | | ??????"#" " ! * " ??????????????? | | ??????""""" = = " " "" ?????????????? | | ??? """ = "" ??????????????? | | ??? "## #" "?????????????? | | ?? """"" ] "" ""????????????? | | ?? "" "" #" @ " "#????????????? | | ?? """" """"" z ""#???????????? | | ? """"" """ "##???????????? | | ?? ?"""#"" """ " ""#????????????? | | ?? ???"#""" """" """?????????????? | | ?????????"#" """"" """?????????????? | | ??????????"" " #?????????????? | | ??????????" " """#?????????????? | | ??????????" """""""""" """??????????????? | | ??????????"" """"????"" # ???????????????? | | ???????????" ?????????? ???????????????? | | ???????????? ?????????? = ??????????????? | | ???????????????????????? ??????????????? | | ???????????????????????? ????????????????? | | ??????????????????????????? ???????????????????? | | ?????????????????????????????????????????????????? | | ?????????????????????????????????????????????????? | | ?????????????????????????????????????????????????? | | ?????????????????????????????????????????????????? | | ?????????????????????????????????????????????????? | | ?????????????????????????????????????????????????? | | ?????????????????????????????????????????????????? | | ?????????????????????????????????????????????????? | | ?????????????????????????????????????????????????? | | ?????????????????????????????????????????????????? | +----------------------------------------------------+ Best States ------------- Heat Dissipation 56 Energy Generation 16 Energy Capacity 290 Matter Stores 300 Matter Capacity 300 Sight Range 20 Robot Scan Range 15 Terrain Scan Density 10 Jamming Range 12 Armor Coverage 750 Resistance: KI 20 Propulsion Shielding 66 Evasion (%) 40 Targeting Accuracy 8 Melee Accuracy 6 Recoil Reduction 2 Salvage Targeting 4 Relay Coupler Types 3 Relay Coupler Value 46 Authchip Count 1 Item Schematics ----------------- Arm. Huge Wheel | -7/Factory | Scanalyzed Mak. Laser | -7/Zion | Archive Focal Shield | -7/Zion | Archive Chainsword | -7/Zion | Archive Mass Driver | -7/Zion | Archive Gravmag System | -7/Zion | Archive Adv. Heat Sink | -7/Zion | Archive Mak. Hacking Suite | -7/Zion | Archive Magnetic Acceleration Cannon | -7/Zion | Archive Hyp. Gauss Rifle | -7/Zion | Archive Imp. Field Recycling Unit | -7/Zion | Archive Mak. Trap Scanner | -7/Zion | Archive Med. Treads | -7/Zion | Archive Adv. Signal Interpreter | -7/Zion | Archive Mak. Terrain Scan Processor | -7/Zion | Archive Lrn. Missile Launcher | -7/Zion | Archive Robot Schematics ------------------ A-02 Transporter | -7/Zion | Archive B-48 Gladiator | -7/Zion | Archive L-41 Fighter | -7/Zion | Archive H-88 Terminator | -7/Zion | Archive Fabricated ------------ Adv. Focal Shield | x2 | -7/Factory | Preloaded Alien Tech Used ----------------- None Achievements -------------- None Challenges ------------ None Game ------ Seed CentriumRecyclingDiverter Manual? 0 Play Time 01:35:37 Cumulative 597.1 hours Start 2022.04.23 @ 17:47:20 End 2022.04.23 @ 19:32:16 Sessions 1 Manual Loads 0 Difficulty Rogue Special Mode None Game No. 565 Rogue 565 Adventurer 0 Explorer 0 Win Type - Total 21 Types 10/3/4/1/1/0/1/1/0 Lore% 88 Gallery% 94 Achievement% 77 Wizard Run 0 Options --------- ASCII 0 Keyboard 0 Movement Mouse Keybinds 1 Fullscreen 2 Font 24/Smallcaps Map View 76x50 Tactical HUD 1 Map Filters NONE Filters NONE Steam 1 RUN: 716aced5-63e3-4cd2-bef1-4f32d27aeb5f